Cogmind - Beta 16.1 @@@ ROGUE MODE // 2026.02.18 @ 17:28:09 Player: Megaknight51 Result: Destroyed by K2-W1A(R) with Subdweller Machine Gun Performance ------------- Evolutions (0) 0 Regions Visited (2) 400 Robots Destroyed (21) 105 Value Destroyed (445) 445 Prototype IDs (15) 300 Alien Tech Used (0) 0 Bonus (0) 0 TOTAL SCORE: 1250 Bonus ------- None Cogmind --------- Core Integrity 0/250 Matter 234/300 Energy 125/125 System Corruption 1% Temperature Cool (0) Movement Rolling (140) Ox4 Location -10/Subcaves Parts ------- > --- POWER (1) -------- Light Ion Engine > --- PROPULSION (2) --- Wheel > --- UTILITY (2) ------ High-capacity Storage Unit Seismic Detector > --- WEAPON (2) ------- Light Cannon Light Cannon > --- INVENTORY (20) --- Structural Scanner Subdweller Optics Improved Terrain Scanner Makeshift Light Armor Plating Gun Armor Scrap Shield Subdweller Laser Subdweller Laser Subdweller Beam Cannon Subdweller Beam Cannon Powered Cannon Subdweller Machine Gun Subdweller Machine Gun Grenade Launcher Grenade Launcher Mining Laser Peak State ------------ > --- POWER ------------ Ion Engine > --- PROPULSION ------- Wheel Wheel > --- UTILITY ---------- High-capacity Storage Unit Makeshift Light Armor Plating > --- WEAPON ----------- Light Cannon Light Cannon > --- INVENTORY -------- Light Ion Engine Structural Scanner Subdweller Optics Improved Terrain Scanner Seismic Detector Gun Armor Scrap Shield Subdweller Laser Subdweller Laser Subdweller Beam Cannon Subdweller Beam Cannon Powered Cannon Subdweller Machine Gun Subdweller Machine Gun Light Cannon Grenade Launcher Grenade Launcher Mining Laser [Rating: 15] Favorites ----------- Power Ion Engine Engine Ion Engine Propulsion Wheel Wheel Wheel Utility High-capacity Storage Unit Device Improved Terrain Scanner Storage High-capacity Storage Unit Protection Makeshift Light Armor Plating Weapon Light Cannon Energy Gun EM Pulse Gun Ballistic Gun Light Assault Rifle Ballistic Cannon Light Cannon Launcher Grenade Launcher Special Weapon Mining Laser Build | -11 -10 -10 ------- Run | Yrd Mat Sub Slots Evolved . | . . . Power . | . . . Propulsion . | . . . Utility . | . . . Weapon . | . . . Parts Attached 26 | 7 11 8 Power 3 | 1 1 1 Engine 3 | 1 1 1 Core . | . . . Reactor . | . . . Propulsion 4 | 2 . 2 Treads . | . . . Leg . | . . . Wheel 4 | 2 . 2 Hover . | . . . Flight . | . . . Utility 7 | 2 3 2 Device 4 | 1 2 1 Storage 2 | 1 1 . Processor . | . . . Hackware . | . . . Protection 1 | . . 1 Artifact . | . . . Weapon 12 | 2 7 3 Energy Gun 3 | 2 1 . Energy Cannon . | . . . Ballistic Gun 1 | . 1 . Ballistic Cannon 6 | . 3 3 Launcher 1 | . 1 . Special Weapon 1 | . 1 . Impact Weapon . | . . . Slashing Weapon . | . . . Piercing Weapon . | . . . Special Melee Weapon . | . . . Unidentified Prototypes . | . . . Corrupted Parts 1 | . 1 . System Corruption 1 | . 1 . Parts Lost 5 | . 1 4 Power 1 | . . 1 Propulsion 2 | . . 2 Utility . | . . . Weapon 2 | . 1 1 Highest Loss Streak 2 | . 1 2 To Critical Strikes . | . . . Average Backups 16 | 2 13 18 Power 1 | . 1 1 Propulsion 1 | . 2 . Utility 4 | . 4 4 Weapon 9 | 1 4 11 Tool/Special . | . . . Unused Backups 20 | 1 1 18 Power 1 | . . 1 Propulsion 1 | 1 . . Utility 5 | . 1 4 Weapon 13 | . . 13 Tool/Special . | . . . Average Slot Usage (%) 96 | . 98 94 Engine 13 | . 13 13 Wheel 24 | . 27 23 Device 12 | . 13 12 Storage 14 | . 14 14 Protection 1 | . . 1 Energy Gun 4 | . 14 . Ballistic Cannon 19 | . 8 24 Special Weapon 3 | . 4 3 Peak Build Rating 15 | 8 9 15 Average Rating 10 | 5 8 11 On Entrance 5 | . 7 9 Avg Prop Armor Cover (%) . | . . . Naked Turns . | . . . Heaviest Build 55 | 14 52 55 Greatest Support 20 | 20 20 20 Greatest Overweight (x) 5 | . 4 5 Average Overweight (x) 2 | . 1 2 Largest Inventory Capacity 20 | 8 20 20 Average Capacity 19 | 7 19 20 Most Carried 20 | 8 20 20 Average Carried 17 | 2 13 19 Final Capacity 20 | 8 20 20 Final Carried 20 | 7 20 18 Class Distribution -------------------- 92% | Mutant 7% | Scavenger-Mutant Dominant Class ---------------- Mutant | -10/Materials Mutant | -10/Subcaves Resources | -11 -10 -10 ----------- Run | Yrd Mat Sub Matter Collected 909 | 270 246 393 Remotely . | . . . Salvage Created 471 | 110 198 163 Parts 32 | 13 16 3 Haulers Intercepted . | . . . Recyclers Shooed 1 | 1 . . Parts Field Recycled . | . . . Retrieved Matter . | . . . Parts Self-Destructed 8 | . . 8 Prevented . | . . . Parts Restored . | . . . Kills | -11 -10 -10 ------- Run | Yrd Mat Sub Combat Hostiles Destroyed 17 | . 10 7 Guns 8 | . 8 . Cannons 9 | . 2 7 Classes Destroyed 5 | 2 2 1 Tunneler 3 | 3 . . Recycler 1 | 1 . . Swarmer 9 | . 8 1 Grunt 2 | . 2 . Subdweller 6 | . . 6 Best Kill Streak 4 | 2 4 2 Combat Bots Only 4 | . 4 2 Max Kills in Single Turn 2 | 1 2 1 Gunslinging 1 | . 1 . Exploded . | . . . Melee . | . . . Uniques/NPCs Destroyed . | . . . Combat | -11 -10 -10 -------- Run | Yrd Mat Sub Hostile Shots Fired 83 | . 31 52 Missed 24 | . 9 15 Hits 59 | . 22 37 Projectile 59 | . 22 37 Damage Taken 998 | . 186 812 Core 261 | . 27 234 Absorbed by Shields . | . . . Core Remaining (%) 100 | 100 . . Volleys Fired 106 | 8 23 75 Largest 2 | 2 2 2 Hottest 100 | 80 100 100 Shots Fired 157 | 16 36 105 Gun 37 | 16 21 . Cannon 66 | . 6 60 Launcher . | . . . Special 54 | . 9 45 Kinetic 66 | . 6 60 Thermal 70 | 8 17 45 Explosive . | . . . Electromagnetic 21 | 8 13 . Robot Hit Streak 16 | 6 5 16 Robot Miss Streak 4 | 4 4 2 Penetration Max . | . . . Secondary Targets 2 | . 2 . Max Gunslinging Chain 1 | . 1 . Shots Hit Robots 73 | 9 14 50 Core Hits 28 | 5 11 12 Critical Kills . | . . . Critical Parts Destroyed . | . . . Critical Strikes 1 | . . 1 Blast 1 | . . 1 Melee Attacks . | . . . Impact . | . . . Slashing . | . . . Piercing . | . . . Sneak Attacks . | . . . Combat Hostiles . | . . . Follow-up Attacks . | . . . Damage Inflicted 1182 | 106 209 867 Guns 229 | 106 123 . Cannons 945 | . 78 867 Explosions . | . . . Melee . | . . . Ramming 8 | . 8 . Kinetic 945 | . 78 867 Thermal 89 | 56 33 . Explosive . | . . . Electromagnetic 140 | 50 90 . Impact . | . . . Slashing . | . . . Piercing . | . . . Highest Corruption 1 | . 1 1 Average Corruption 1 | . 1 1 Corruption Purged . | . . . Corruption Blocked . | . . . Effects 14 | . 3 11 Message Errors 5 | . 1 4 Matter Fused 2 | . 1 1 Energy Discharges 1 | . 1 . Data Loss (minor) 3 | . . 3 Data Loss (major) 1 | . . 1 Alerts 2 | . . 2 Overload Shots . | . . . Overflow Damage . | . . . Projectiles . | . . . Explosions . | . . . Melee . | . . . Knockbacks 12 | . 1 11 Impact . | . . . Kinetic 12 | . 1 11 Secondary . | . . . Self-Inflicted Damage 3 | . 3 . Shots . | . . . Rammed 3 | . 3 . Targets Rammed 3 | . 3 . Kicked . | . . . Crushed . | . . . Highest Temperature 108 | 72 108 . Average Temperature 28 | 26 29 . Received Heat Transfer 195 | . 12 183 Siege Activations . | . . . Martial Activations . | . . . Shielding Activations . | . . . Robots Disrupted . | . . . Combat Hostiles . | . . . Robots Corrupted . | . . . Combat Hostiles . | . . . Parts Fried . | . . . Impact Corruptions . | . . . Robots Melted . | . . . Combat Hostiles . | . . . Parts Melted . | . . . Heat Transferred 200 | 125 75 . Parts Sabotaged . | . . . Parts Stolen . | . . . Parts Stripped . | . . . Power Chain Reactions . | . . . Alert | -11 -10 -10 ------- Run | Yrd Mat Sub Maximum Alert Level . | . . . Low Security (%) 100 | 100 100 . Level 1 . | . . . Level 2 . | . . . Level 3 . | . . . Level 4 . | . . . Level 5 . | . . . High Security . | . . . Max Security . | . . . Peak Influence 112 | 10 112 . Initial . | . . . Average 44 | 1 49 . Influence Increases 394 | 20 344 30 Destroy 0b10 Robot/C 220 | . 200 20 Destroy 0b10 Robot/NC 20 | 20 . . Destroy Leader 50 | . 40 10 Successful Hack 5 | . 5 . Disable Machine 30 | . 30 . Destroy Structure 9 | . 9 . Lose Combat Pursuer 60 | . 60 . Influence Decreases 394 | 20 284 90 Entered New Map 29 | . . 29 Time Decay 355 | 20 274 61 Lost Part 10 | . 10 . Squads Dispatched 1 | . 1 . Investigation . | . . . Extermination . | . . . Reinforcement 1 | . 1 . Assault . | . . . Garrison . | . . . Intercept . | . . . Searches Triggered . | . . . Construction Impeded . | . . . Haulers Reinforced . | . . . Active Scanning Responses . | . . . Cargo Convoy Interrupts . | . . . Stealth | -11 -10 -10 --------- Run | Yrd Mat Sub Distress Signals 4 | . 4 . Communications Jammed . | . . . Distress Signals . | . . . Times Spotted 25 | . 17 8 Peak Tracking Total 4 | . 4 2 Tactical Retreats 3 | . 3 . Traps | -11 -10 -10 ------- Run | Yrd Mat Sub Traps Triggered 6 | . 5 1 Indirectly . | . . . Trap Hack Attempts . | . . . Triggered . | . . . Disarmed . | . . . Reprogrammed . | . . . Reused . | . . . Traps Extracted . | . . . Installed . | . . . Triggered . | . . . Machines | -11 -10 -10 ---------- Run | Yrd Mat Sub Machines Disabled 3 | . 2 1 Max in Single Turn 1 | . 1 1 Machines Repaired . | . . . Machines Dismantled . | . . . Machines Sabotaged . | . . . Overloaded Fab Kills . | . . . Hacking | -11 -10 -10 --------- Run | Yrd Mat Sub Machines Accessed 5 | . 4 1 Terminals 4 | . 4 . Fabricators . | . . . Repair Stations . | . . . Recycling Units . | . . . Scanalyzers . | . . . Garrison Access . | . . . Total Hacks 13 | . 12 1 Successful 3 | . 2 1 Failed 10 | . 10 . Catastrophic 1 | . 1 . Database Lockouts . | . . . Manual 12 | . 12 . Terminals 12 | . 12 . Fabricators . | . . . Repair Stations . | . . . Recycling Units . | . . . Scanalyzers . | . . . Garrison Access . | . . . Terminal Hacks 2 | . 1 1 Prototype ID Bank 1 | . 1 . Proto ID Catalog 1 | . . 1 Fabricator Hacks . | . . . Repair Station Hacks . | . . . Recycling Unit Hacks . | . . . Scanalyzer . | . . . Garrison Access Hacks . | . . . Unauthorized Hacks 1 | . 1 . Terminals 1 | . 1 . Botnet 1 | . 1 . Fabricators . | . . . Repair Stations . | . . . Recycling Units . | . . . Scanalyzers . | . . . Garrison Access . | . . . Data Cores Recovered . | . . . Used . | . . . Hacking Detections 4 | . 4 . Full Trace Events 3 | . 3 . Feedback Events . | . . . Feedback Blocked . | . . . Robot Schematics Acquired . | . . . Robots Built . | . . . Authchips . | . . . Time . | . . . Total Robot Build Rating . | . . . Part Schematics Acquired . | . . . Parts Built . | . . . Authchips . | . . . Time . | . . . Total Part Build Rating . | . . . Part Studies Acquired . | . . . Parts Repaired . | . . . Time . | . . . Parts Recycled . | . . . Recycled Matter . | . . . Retrieved Matter . | . . . Retrieved Components . | . . . Parts Scanalyzed . | . . . Part Schematics Acquired . | . . . Parts Damaged . | . . . Bothacking | -11 -10 -10 ------------ Run | Yrd Mat Sub Used RIF Installer . | . . . Robots Hacked . | . . . Non-combat . | . . . Combat . | . . . Robot Hacks Applied . | . . . Relay Couplers Released . | . . . Fabnet Peak Effective % . | . . . Robots Rewired . | . . . Allies Hacked . | . . . Hacks Repelled . | . . . Allies | -11 -10 -10 -------- Run | Yrd Mat Sub Total Allies . | . . . Largest Group . | . . . Highest-Rated Group . | . . . Highest-Rated Ally . | . . . Total Orders . | . . . Ally Attacks . | . . . Total Damage . | . . . Kills . | . . . Allies Corrupted . | . . . Allies Melted . | . . . Intel | -11 -10 -10 ------- Run | Yrd Mat Sub Active Infowar (turns) 2457 | 42 781 1634 Terrain 1074 | . . 1074 Structural 611 | . 599 12 Seismic 772 | 42 182 548 Robot Analysis Total . | . . . Derelict Logs Recovered 1 | . . 1 Drone Launches . | . . . Drone Recoveries . | . . . Exploration | -11 -10 -10 ------------- Run | Yrd Mat Sub Turns Passed 2763 | 94 804 1865 Spaces Moved 1479 | 65 466 948 Core 2 | 2 . . Treads . | . . . Legs . | . . . Wheels 1477 | 63 466 948 Hover . | . . . Flight . | . . . Fastest Speed 50 | 50 80 110 Average Speed 110 | 79 109 112 Slowest Speed 155 | 80 140 155 Overloaded Moves . | . . . Propulsion Burnouts . | . . . Robots Hopped . | . . . Potential Cave-ins . | . . . Cave-ins Triggered . | . . . Exploration Rate (%) 36 | 3 69 37 Regions Visited 2 Branch Regions 1 Pre-discovered Areas 1 | . . 1 Known Exits Taken . | . . . Unknown Exits Taken 2 | 1 1 . Scrap Searched 3 | . . 3 Spaces Dug 9 | . 9 . Terrain Destroyed 9 | . 9 . Melee . | . . . Projectile 9 | . 9 . AOE . | . . . Terrain Rammed . | . . . Walls Destroyed . | . . . Machines Disabled . | . . . Actions | -11 -10 -10 --------- Run | Yrd Mat Sub Total 2331 | 88 697 1546 Wait 636 | . 161 475 Move 1477 | 64 465 948 Hop . | . . . Pick Up 35 | 8 16 11 Fast Attach 18 | 7 10 1 Attach 6 | . 2 4 Detach 2 | . 2 . Swap 29 | . 11 18 Drop 19 | 1 4 14 Fire 106 | 8 23 75 Melee . | . . . Ram 3 | . 3 . Kick . | . . . Crush . | . . . Escape Stasis . | . . . Rewire . | . . . Trap . | . . . Miscellaneous . | . . . Route ------- -11/Scrapyard -10/Materials (discovered 5 exits: [*Mat x2] / [*Min x2] / *Sub) -10/Subcaves (discovered 1 exit: [*Mat]) History --------- Turn | Location | Event 57 | -11/Scrapyard | Discovered new exit (range 15) 95 | -11/Scrapyard | Entered Materials 255 | -10/Materials | Discovered new exit (range 9) 317 | -10/Materials | Build established: Mutant 446 | -10/Materials | Discovered new exit (range 16) 552 | -10/Materials | Discovered new exit (range 13) 595 | -10/Materials | Derelicts attacked the area 726 | -10/Materials | Discovered new exit (range 15) 789 | -10/Materials | Discovered new exit (range 10) 899 | -10/Materials | Entered Subcaves 942 | -10/Subcaves | Learned location of Recycling (-8) 972 | -10/Subcaves | A swath of the cavern ceiling suddenly collapsed 1593 | -10/Subcaves | Shifting Twisted Machinery released Scrap Shield 1597 | -10/Subcaves | Shifting Twisted Machinery released Sub. Beam Cannon 1634 | -10/Subcaves | Shifting Twisted Machinery released Sub. Optics 1910 | -10/Subcaves | Visited 4L-MR0's lab 1933 | -10/Subcaves | Found Powered Cannon 2031 | -10/Subcaves | Shifting Twisted Machinery released Sub. Machine Gun 2080 | -10/Subcaves | Shifting Twisted Machinery released Mak. Light Armor Plating 2236 | -10/Subcaves | Shifting Twisted Machinery released Sub. Laser 2359 | -10/Subcaves | Discovered new exit (range 13) 2449 | -10/Subcaves | A Subdweller sparked back to life 2488 | -10/Subcaves | Core integrity fell below 50% 2518 | -10/Subcaves | Found Gun Armor 2546 | -10/Subcaves | Core integrity fell below 20% 2764 | -10/Subcaves | Destroyed by K2-W1A(R) with Subdweller Machine Gun Last Messages --------------- 02518_ Acquired Gun Armor. 02519_ Acquired 4 matter. 02520_ Acquired 1 matter. 02537_ F2-S0Z(R) knocked back. 02546_ F2-S0Z(R) destroyed. 02554_ Acquired 6 matter. 02555_ Acquired 47 matter. 02557_ Acquired 7 matter. 02578_ Acquired 19 matter. 02580_ Acquired 60 matter. 02633_ Z2-VBR(R) knocked back. 02636_ Ion Engine destroyed. 02636_ Z2-VBR(R) destroyed. 02642_ Acquired 2 matter. 02643_ Acquired 37 matter. 02657_ Acquired 14 matter. 02744_ K2-W1A(R) knocked back. 02747_ Lgt. Cannon destroyed. 02751_ K2-W1A(R) knocked back. 02759_ Wheel destroyed. Map ----- +----------------------------------------------------+ | ?????????????????????????????????????????????????? | | ?????????????????????????????????????????????????? | | ?????????????????????????????????????????????????? | | ?????????????????????????????????????????????????? | | ?????????????????????????????????????????????????? | | ?????????????????????????????????????????????????? | | ?????????????????????????????????????????????????? | | ?????????????????????????????????????????????????? | | ?????????????????????????????????????????????????? | | ?????????????????????????????????????????????????? | | ?????????????????????????????????????????????????? | | ?????????????????????????????????????????????????? | | ?????????????????????????????????????????????????? | | ?????????????????????????????????????????????????? | | ?????????????????????????????????????????????????? | | ??????????????????????????????????###????????????? | | ????????????????????????????????## #????????????? | | ????????????????#?????#?????????# #????????????? | | ???????????????## ???? ????????## #????????????? | | ???????????????# ???# ?????### ###??????????? | | ????????????????# ### ????## % ##?????????? | | ????????????????# #####R% #?????????? | | ?????????????#### #??????????? | | ?????????????# #???????????? | | ????????????# ## #???????????? | | ????????????# @#### #???????????? | | ???????????# ## ##?## ##???????????? | | ????????????# ???# ???# #????????????? | | ????????????## ?????#????# #???????????## | | ?????????????## ????????###### ## #????????####% | | ????????????????????????# ## ###??????### # | | ???????????????????????## ""# #???????#% &] | | ??????????????????????## " " ##???????## | | ??????????????????????# " " "##????????# ## | | ??????????????????????# " "##?????????# ### | | ??????????????????????# "" ###??????????## #?? | | ??????????????????????# "" ##???????????## #?? | | ??????????????????????##" #####????????# ##?? | | ???????????????????????#" #?????#### #??? | | ???????????????????????## ###??## ##?? | | ????????????????????????# "" #### ### | | ????????????????????????## ## """ ### %## | | ????????????????????????# ### " # ##?## | | ????????????????????????## " ## # "####### [ | | ????????????????????????##"""# # #"%" # & | | ????????????????????????#"" "% | | ???????????????????????# """ "# | | ????????????????????# #"###### # # # ## | | ???????????????????? ##?????################? | | ?????????????????????????????????????????????????? | +----------------------------------------------------+ Best States ------------- Heat Dissipation 25 Energy Generation 10 Energy Capacity 250 Matter Stores 300 Matter Capacity 300 Sight Range 16 Terrain Scan Range 16 Terrain Scan Density 10 Armor Coverage 100 Evasion (%) 44 Item Schematics ----------------- None Robot Schematics ------------------ None Fabricated ------------ Nothing Repaired ---------- Nothing Studied --------- None Alien Tech Used ----------------- None Achievements -------------- None Challenges ------------ None Game ------ Seed SeismicProcessingEngine Manual? 0 Play Time 00:16:48 Cumulative 89.2 hours Start 2026.02.18 @ 17:11:33 End 2026.02.18 @ 17:28:09 Sessions 1 Manual Loads 0 Difficulty Rogue Special Mode None Game No. 184 Rogue 184 Adventurer 0 Explorer 0 Win Type - Total 1 Types 1/0/0/0/0/0/0/0/0/0 Lore% 50 Gallery% 39 Achievement% 39 Wizard Run 0 Options --------- Layout 0 ASCII 0 Keyboard 1 Movement Arrows Keybinds 0 Fullscreen 1 Font 18/Smallcaps Map View 38x25 Zoom Use 38% Tactical HUD 1 Map Filters NONE Filters NONE Steam 1 RUN: 5830bb5e-6c8d-4bda-9f54-2ac1373ff907